Cogmind - Beta 10.1 @@@ ROGUE MODE // 2020.10.13 @ 20:36:36 // Winter2019/RPGLIKE Player: Hermelin Result: Destroyed by G-47 Trooper with Particle Gun Performance ------------- Evolutions (3) 1500 Regions Visited (6) 1200 Robots Destroyed (132) 660 Value Destroyed (3916) 3916 Prototype IDs (52) 1040 Alien Tech Used (0) 0 Bonus (997) 997 TOTAL SCORE: 9313 Bonus ------- High Alert Combat Kills 416 Follower Combat Kills 281 Aligned with FarCom 300 Cogmind --------- Core Integrity 0/1000 Matter 275/300 Energy 407/490 System Corruption 2% Temperature Cool (6) Movement Hovering (131) Ox1 Location -7/Factory Parts ------- > --- POWER (2) -------- Heavy Ion Engine Cooled Deuterium Engine > --- PROPULSION (4) --- Light Treads Aerolev Unit Gravmag System > --- UTILITY (8) ------ Advanced Signal Interpreter Advanced Terrain Scanner 0b10 Alert Chip Microactuators Improved Light Armor Plating Improved Shield Generator Hacking Suite Hacking Suite > --- WEAPON (5) ------- Power Maul Power Maul Chainsword Greatsword > --- INVENTORY (5) ---- Experimental Sensor Array System Backup Module Sensor Drone Bay (20/20) Peak State ------------ > --- POWER ------------ Heavy Ion Engine Cooled Deuterium Engine > --- PROPULSION ------- Light Treads Aerolev Unit Gravmag System > --- UTILITY ---------- Advanced Signal Interpreter Advanced Terrain Scanner 0b10 Alert Chip Microactuators Improved Light Armor Plating Improved Shield Generator Hacking Suite Hacking Suite > --- WEAPON ----------- Power Maul Power Maul Chainsword Greatsword > --- INVENTORY -------- Experimental Sensor Array Improved Light Armor Plating System Backup Module Sensor Drone Bay [Rating: 68] Favorites ----------- Power Light Angular Momentum Engine Engine Light Angular Momentum Engine Power Core Light Nuclear Core Propulsion Airjet Treads Light Treads Wheel Wheel Hover Unit Airjet Flight Unit Flight Unit Utility Hacking Suite Device Improved Terrain Scanner Storage High-capacity Matter Pod Processor 0b10 Alert Chip Hackware Hacking Suite Protection Light Armor Plating Weapon Power Maul Energy Gun Beamcaster Ballistic Gun Assault Rifle Impact Weapon Power Maul Slashing Weapon Axe Special Melee Weapon Datajack Build | -11 -10 -10 -10 -9 -8 -7 ------- Run | Scr Mat Min Exi Min Mat Fac Slots Evolved 15 | 3 1 1 . 1 5 4 Power 1 | . . . . . 1 . Propulsion 3 | 1 . 1 . . 1 . Utility 7 | 1 1 . . 1 2 2 Weapon 4 | 1 . . . . 1 2 Parts Attached 79 | 7 9 4 2 11 20 26 Power 6 | 1 1 1 . . 2 1 Engine 5 | 1 1 1 . . 1 1 Core 1 | . . . . . 1 . Reactor . | . . . . . . . Propulsion 21 | 2 6 1 . . 8 4 Treads 3 | 1 . . . . . 2 Leg . | . . . . . . . Wheel 1 | 1 . . . . . . Hover 14 | . 4 1 . . 7 2 Flight 3 | . 2 . . . 1 . Utility 36 | 2 1 1 . 9 6 17 Device 19 | 2 . . . 5 3 9 Storage 1 | . 1 . . . . . Processor 3 | . . . . 2 . 1 Hackware 2 | . . . . . 1 1 Protection 11 | . . 1 . 2 2 6 Artifact . | . . . . . . . Weapon 16 | 2 1 1 2 2 4 4 Energy Gun 3 | 1 . 1 1 . . . Energy Cannon . | . . . . . . . Ballistic Gun 2 | 1 1 . . . . . Ballistic Cannon . | . . . . . . . Launcher . | . . . . . . . Special Weapon . | . . . . . . . Impact Weapon 6 | . . . . 2 3 1 Slashing Weapon 4 | . . . . . 1 3 Piercing Weapon . | . . . . . . . Special Melee Weapon 1 | . . . 1 . . . Unidentified Prototypes 5 | . . . . 2 2 1 Parts Lost 5 | . . . . . . 5 Power . | . . . . . . . Propulsion 4 | . . . . . . 4 Utility 1 | . . . . . . 1 Weapon . | . . . . . . . Highest Loss Streak 2 | . . . . . . 2 Average Slot Usage (%) 98 | . 99 99 100 100 98 95 Engine 11 | . 13 11 11 10 10 11 Hover 22 | . 18 29 33 30 24 17 Device 16 | . 26 23 22 11 13 12 Processor 9 | . . . . 16 15 11 Hackware 5 | . . . . . 7 10 Protection 6 | . . 10 11 9 7 5 Energy Gun 2 | . 3 10 3 6 . . Ballistic Gun 5 | . 22 12 11 . . . Impact Weapon 10 | . . . . 13 15 16 Slashing Weapon 2 | . . . . . 2 5 Naked Turns . | . . . . . . . Heaviest Build 43 | 11 13 21 21 34 32 43 Greatest Support 41 | 25 17 23 23 23 41 41 Greatest Overweight (x) 5 | . 1 1 . 1 . 5 Average Overweight (x) . | . . . . . . . Largest Inventory Capacity 5 | 2 3 3 3 3 4 5 Average Capacity 3 | 1 2 3 3 3 3 4 Most Carried 5 | . 3 3 3 3 4 5 Average Carried 3 | . 1 2 2 2 3 3 Final Capacity 5 | 2 3 3 3 3 4 5 Final Carried 4 | . 3 3 2 3 4 3 Class Distribution -------------------- 42% | Hacker-Scout 32% | Scavenger-Mutant 9% | Hacker-Mutant 5% | Mutant 4% | Scavenger-Scout Dominant Class ---------------- Scavenger-Mutant | -10/Materials Scavenger-Mutant | -10/Mines Scavenger-Mutant | -10/Exiles Scavenger-Mutant | -9/Mines Hacker-Scout | -8/Materials Hacker-Scout | -7/Factory Resources | -11 -10 -10 -10 -9 -8 -7 ----------- Run | Scr Mat Min Exi Min Mat Fac Matter Collected 1747 | 282 701 148 10 123 253 230 Remotely 958 | 91 696 148 10 13 . . Salvage Created 4736 | 122 829 347 . 109 1413 1916 Parts 206 | 6 50 10 . 8 60 72 Haulers Intercepted 11 | . 2 . . . 6 3 Recyclers Shooed 3 | . . 3 . . . . Parts Field Recycled . | . . . . . . . Retrieved Matter . | . . . . . . . Parts Self-Destructed . | . . . . . . . Prevented . | . . . . . . . Kills | -11 -10 -10 -10 -9 -8 -7 ------- Run | Scr Mat Min Exi Min Mat Fac Combat Hostiles Destroyed 88 | . 16 1 . 3 26 42 Melee 48 | . . . . 2 19 27 Guns 18 | . 16 1 . 1 . . AOE 1 | . . . . . 1 . Classes Destroyed 14 | 2 6 1 . . 3 2 Worker 10 | . 5 2 . . . 3 Builder 2 | . . . . . 1 1 Tunneler 3 | 1 . . . 2 . . Hauler 11 | . 2 . . . 6 3 Recycler 9 | 1 1 4 . . 1 2 Mechanic 1 | . . . . . . 1 Operator 2 | . 1 . . . . 1 Watcher 6 | . 2 . . . 2 2 Swarmer 23 | . 9 . . 1 . 13 Grunt 43 | . 7 . . 2 14 20 Duelist 1 | . . . . . 1 . Sentry 15 | . . 1 . . 9 5 Hunter 4 | . . . . . 2 2 Programmer 2 | . . . . . . 2 Best Kill Streak 15 | 1 6 2 . 1 6 15 Combat Bots Only 7 | . 5 1 . 1 6 7 Max Kills in Single Turn 2 | 1 2 1 . 1 2 1 Gunslinging 1 | . 1 . . . . . Exploded 1 | . . . . . 1 . Melee 1 | . . . . 1 1 1 Uniques/NPCs Destroyed . | . . . . . . . Combat | -11 -10 -10 -10 -9 -8 -7 -------- Run | Scr Mat Min Exi Min Mat Fac Damage Taken 5879 | . 711 112 . 124 1553 3379 Core 4220 | . 570 82 . 88 1119 2361 Absorbed by Shields 1189 | . . . . . 414 775 Redirected to Core 3355 | . 449 82 . 76 864 1884 Core Remaining (%) 94 | 100 . . . 100 83 . Volleys Fired 113 | 4 77 28 2 2 . . Largest 2 | 2 2 2 1 2 . . Hottest 95 | 60 60 95 75 95 . . Shots Fired 208 | 8 154 41 2 3 . . Gun 208 | 8 154 41 2 3 . . Cannon . | . . . . . . . Launcher . | . . . . . . . Special . | . . . . . . . Kinetic 178 | 4 137 36 . 1 . . Thermal 9 | . . 5 2 2 . . Explosive . | . . . . . . . Electromagnetic 21 | 4 17 . . . . . Robot Hit Streak 17 | 4 17 13 . 1 . . Robot Miss Streak 7 | 1 7 3 . 4 . . Penetration Max . | . . . . . . . Secondary Targets 5 | . 4 . . 1 . . Max Gunslinging Chain 1 | . 1 . . 1 . . Shots Hit Robots 437 | 5 90 32 4 13 111 182 Core Hits 127 | 3 40 12 . 3 27 42 Critical Hits 1 | . . . . . . 1 Critical Kills . | . . . . . . . Critical Parts Destroyed 1 | . . . . . . 1 Melee Attacks 425 | . . . 4 13 141 267 Impact 339 | . . . . 13 126 200 Slashing 82 | . . . . . 15 67 Piercing . | . . . . . . . Sneak Attacks 35 | . . . 4 2 12 17 Combat Hostiles 6 | . . . . . 2 4 Follow-up Attacks 82 | . . . . 1 20 61 Damage Inflicted 14374 | 65 1197 434 . 506 4790 7382 Guns 1718 | 65 1197 434 . 22 . . Cannons . | . . . . . . . Explosions 274 | . . . . . 274 . Melee 12382 | . . . . 484 4516 7382 Ramming . | . . . . . . . Kinetic 1411 | 37 1002 372 . . . . Thermal 358 | . . 62 . 22 274 . Explosive . | . . . . . . . Electromagnetic 223 | 28 195 . . . . . Impact 9598 | . . . . 484 3843 5271 Slashing 2784 | . . . . . 673 2111 Piercing . | . . . . . . . Highest Corruption 5 | . . . . . 4 5 Average Corruption 2 | . . . . . 3 2 Corruption Purged 5 | . . . . . . 5 Effects 34 | . . . . . 22 12 Message Errors 4 | . . . . . 3 1 Matter Fused 8 | . . . . . 7 1 Heat Flow Errors 7 | . . . . . 4 3 Energy Discharges 3 | . . . . . 2 1 Data Loss (minor) 5 | . . . . . 2 3 Targeting Errors 7 | . . . . . 4 3 Overload Shots . | . . . . . . . Overflow Damage 1865 | . . . . 87 617 1161 Projectiles . | . . . . . . . Explosions 49 | . . . . . 49 . Melee 1816 | . . . . 87 568 1161 Knockbacks 39 | . . . . 2 7 30 Impact 37 | . . . . 2 7 28 Kinetic . | . . . . . . . Secondary 2 | . . . . . . 2 Self-Inflicted Damage 101 | . . . . . 101 . Shots 1 | . . . . . 1 . Rammed . | . . . . . . . Targets Rammed . | . . . . . . . Kicked . | . . . . . . . Crushed . | . . . . . . . Highest Temperature 286 | . 81 153 85 107 286 248 Average Temperature 53 | . 26 66 43 53 71 41 Received Heat Transfer 1986 | . 252 69 . 60 522 1083 Siege Activations . | . . . . . . . Robots Corrupted . | . . . . . . . Combat Hostiles . | . . . . . . . Parts Fried 50 | . 2 . . 5 15 28 Impact Corruptions 84 | . . . . 6 25 53 Robots Melted . | . . . . . . . Combat Hostiles . | . . . . . . . Parts Melted . | . . . . . . . Heat Transferred 348 | . . 111 . 37 200 . Parts Sabotaged . | . . . . . . . Parts Stolen . | . . . . . . . Parts Stripped . | . . . . . . . Power Chain Reactions . | . . . . . . . Missiles Intercepted . | . . . . . . . Alert | -11 -10 -10 -10 -9 -8 -7 ------- Run | Scr Mat Min Exi Min Mat Fac Peak Influence 1428 | 10 447 263 . 201 424 1428 Initial 162 | . 6 162 . . . 22 Average 301 | 4 257 174 . 96 168 524 Maximum Alert Level 4 | . 2 1 . 1 2 4 Low Security (%) 40 | 100 23 57 . 91 59 13 Level 1 35 | . 57 42 . 8 40 28 Level 2 11 | . 18 . . . . 22 Level 3 12 | . . . . . . 34 Level 4 . | . . . . . . . Level 5 . | . . . . . . . High Security . | . . . . . . . Max Security . | . . . . . . . Squads Dispatched 16 | . 2 . . 1 4 9 Investigation 6 | . 1 . . 1 3 1 Extermination 2 | . . . . . . 2 Reinforcement 7 | . 1 . . . 1 5 Assault 1 | . . . . . . 1 Garrison . | . . . . . . . Intercept . | . . . . . . . Construction Impeded . | . . . . . . . Haulers Reinforced 2 | . . . . . . 2 Stealth | -11 -10 -10 -10 -9 -8 -7 --------- Run | Scr Mat Min Exi Min Mat Fac Distress Signals 6 | . 2 . . . 3 1 Communications Jammed . | . . . . . . . Distress Signals . | . . . . . . . Times Spotted 152 | . 28 4 . 8 46 66 Peak Tracking Total 9 | . 5 2 9 4 5 8 Tactical Retreats 13 | . 1 . . . 3 9 Traps | -11 -10 -10 -10 -9 -8 -7 ------- Run | Scr Mat Min Exi Min Mat Fac Traps Triggered 4 | . . . . . 1 3 Indirectly . | . . . . . . . Trap Hack Attempts . | . . . . . . . Triggered . | . . . . . . . Disarmed . | . . . . . . . Reprogrammed . | . . . . . . . Reused . | . . . . . . . Traps Extracted . | . . . . . . . Installed 3 | . . . . 3 . . Triggered 1 | . . . . . . 1 Machines | -11 -10 -10 -10 -9 -8 -7 ---------- Run | Scr Mat Min Exi Min Mat Fac Machines Disabled 4 | . . . 2 . 1 1 Max in Single Turn 1 | . . . 1 . 1 1 Garrison Access 2 | . . . . . . 2 Machines Sabotaged . | . . . . . . . Garrisons Compromised . | . . . . . . . Overloaded Fab Kills . | . . . . . . . Fab Network Shutdowns 1 | . . . . . . 1 Hacking | -11 -10 -10 -10 -9 -8 -7 --------- Run | Scr Mat Min Exi Min Mat Fac Machines Accessed 39 | . 7 . 2 3 17 10 Terminals 20 | . 6 . . . 11 3 Fabricators 3 | . . . . . . 3 Repair Stations 2 | . . . . . 2 . Recycling Units 3 | . 1 . . . 1 1 Scanalyzers 3 | . . . . . 2 1 Garrison Access 3 | . . . . . 1 2 Total Hacks 144 | . 31 . 2 3 77 31 Successful 104 | . 23 . 2 3 53 23 Failed 38 | . 7 . . . 23 8 Catastrophic 2 | . . . . . 2 . Database Lockouts 2 | . 1 . . . 1 . Manual 78 | . 22 . 1 . 46 9 Terminals 101 | . 29 . . . 60 12 Fabricators 12 | . . . . . . 12 Repair Stations 4 | . . . . . 4 . Recycling Units 5 | . 2 . . . 2 1 Scanalyzers 10 | . . . . . 8 2 Garrison Access 7 | . . . . . 3 4 Terminal Hacks 48 | . 11 . 2 3 23 9 Record 1 | . . . 1 . . . Robot Schematic 2 | . 1 . . . . 1 Robot Analysis 7 | . 4 . . . 1 2 Prototype ID Bank 6 | . 3 . . . 3 . Open Door 3 | . . . . 3 . . Level Access Points 2 | . . . . . 1 1 Branch Access Points 3 | . . . . . 2 1 Machine Index 1 | . . . . . 1 . Terminal Index 3 | . 1 . . . 1 1 Scanalyzer Index 1 | . . . . . 1 . Garrison Index 1 | . . . . . . 1 Unreport Threat 5 | . . . . . 5 . Locate Traps 5 | . 2 . . . 2 1 Hauler Manifests 1 | . . . . . 1 . Registered Components 2 | . . . . . 1 1 Zone Layout 4 | . . . . . 4 . EX-Prototype ID Bank 1 | . . . 1 . . . Fabricator Hacks 6 | . . . . . . 6 Load Schematic 3 | . . . . . . 3 Build 3 | . . . . . . 3 Repair Station Hacks 4 | . . . . . 4 . Scan Component 2 | . . . . . 2 . Repair 2 | . . . . . 2 . Recycling Unit Hacks 3 | . 1 . . . 1 1 Report Inventory 3 | . 1 . . . 1 1 Scanalyzer 8 | . . . . . 8 . Insert Component 4 | . . . . . 4 . Analyze 4 | . . . . . 4 . Garrison Access Hacks 1 | . . . . . . 1 Seal Access 1 | . . . . . . 1 Unauthorized Hacks 34 | . 11 . . . 17 6 Terminals 28 | . 10 . . . 16 2 Track 14 | . 4 . . . 9 1 Assimilate 4 | . 3 . . . 1 . Botnet 5 | . 2 . . . 2 1 Disrupt 3 | . . . . . 3 . Operators 2 | . 1 . . . 1 . Fabricators 4 | . . . . . . 4 Report 1 | . . . . . . 1 Prioritize 2 | . . . . . . 2 Siphon 1 | . . . . . . 1 Repair Stations . | . . . . . . . Recycling Units 2 | . 1 . . . 1 . Tunnel 2 | . 1 . . . 1 . Scanalyzers . | . . . . . . . Garrison Access . | . . . . . . . Data Cores Recovered . | . . . . . . . Used . | . . . . . . . Hacking Detections 25 | . 6 . . . 12 7 Full Trace Events 4 | . . . . . 3 1 Feedback Events . | . . . . . . . Feedback Blocked . | . . . . . . . Robot Schematics Acquired 2 | . 1 . . . . 1 Robots Built . | . . . . . . . Matter . | . . . . . . . Time . | . . . . . . . Total Robot Build Rating . | . . . . . . . Part Schematics Acquired 4 | . . . . . 4 . Parts Built 3 | . . . . . . 3 Matter 602 | . . . . . . 602 Time 232 | . . . . . . 232 Total Part Build Rating 9 | . . . . . . 9 Parts Repaired 2 | . . . . . 2 . Time 161 | . . . . . 161 . Parts Recycled . | . . . . . . . Recycled Matter . | . . . . . . . Retrieved Matter . | . . . . . . . Retrieved Components . | . . . . . . . Parts Scanalyzed 4 | . . . . . 4 . Part Schematics Acquired 4 | . . . . . 4 . Parts Damaged 2 | . . . . . 2 . Bothacking | -11 -10 -10 -10 -9 -8 -7 ------------ Run | Scr Mat Min Exi Min Mat Fac Used RIF Installer . | . . . . . . . Robots Hacked 4 | . . . 4 . . . Non-combat 3 | . . . 3 . . . Combat 1 | . . . 1 . . . Robot Hacks Applied 4 | . . . 4 . . . parse_system 4 | . . . 4 . . . Relay Couplers Released 1 | . . . . . . 1 Machine Destruction 1 | . . . . . . 1 Robots Rewired . | . . . . . . . Allies Hacked . | . . . . . . . Hacks Repelled . | . . . . . . . Allies | -11 -10 -10 -10 -9 -8 -7 -------- Run | Scr Mat Min Exi Min Mat Fac Total Allies 8 | . 2 5 . 1 . . Largest Group 6 | . 1 6 6 4 4 . Highest-Rated Group 95 | . 10 95 95 73 73 . Highest-Rated Ally 31 | . 10 31 31 31 31 . Total Orders 9 | . . . . 9 . . STAY 4 | . . . . 4 . . FOLLOW 4 | . . . . 4 . . RETURN 1 | . . . . 1 . . Ally Attacks 60 | . . 4 . 20 36 . Total Damage 813 | . . 61 . 199 553 . Kills 12 | . . 2 . 5 5 . Allies Corrupted . | . . . . . . . Allies Melted . | . . . . . . . Intel | -11 -10 -10 -10 -9 -8 -7 ------- Run | Scr Mat Min Exi Min Mat Fac Robot Analysis Total 7 | . 4 . . . 1 2 Derelict Logs Recovered 3 | . . 1 . 2 . . Drone Launches 1 | . . . . 1 . . Drone Recoveries 1 | . . . . 1 . . Exploration | -11 -10 -10 -10 -9 -8 -7 ------------- Run | Scr Mat Min Exi Min Mat Fac Turns Passed 5298 | 63 731 613 319 479 1291 1802 Spaces Moved 5021 | 50 733 735 437 544 1257 1265 Core 8 | 4 . . . . . 4 Treads 108 | 2 . . . . . 106 Legs . | . . . . . . . Wheels 167 | 44 123 . . . . . Hover 4661 | . 533 735 437 544 1257 1155 Flight 77 | . 77 . . . . . Fastest Speed 37 | 50 37 52 52 52 48 48 Average Speed 61 | 80 58 61 52 64 50 73 Slowest Speed 300 | 160 120 116 52 112 56 300 Overloaded Moves . | . . . . . . . Propulsion Burnouts . | . . . . . . . Robots Hopped 1 | . 1 . . . . . Cave-ins Triggered . | . . . . . . . Exploration Rate (%) 70 | 4 96 96 71 95 90 43 Regions Visited 6 Branch Regions 3 Pre-discovered Areas 3 | . 1 . 1 . 1 . Known Exits Taken 1 | . . . . . 1 . Unknown Exits Taken 5 | 1 1 1 1 1 . . Scrap Searched 5 | . . 4 . 1 . . Spaces Dug 10 | . . . . . 3 7 Terrain Destroyed 46 | . . . . . 39 7 Melee 10 | . . . . . 3 7 Projectile . | . . . . . . . AOE 36 | . . . . . 36 . Terrain Rammed . | . . . . . . . Walls Destroyed . | . . . . . . . Machines Disabled . | . . . . . . . Actions | -11 -10 -10 -10 -9 -8 -7 --------- Run | Scr Mat Min Exi Min Mat Fac Total 6581 | 60 883 853 524 650 1732 1879 Wait 796 | . 31 60 69 60 241 335 Move 5013 | 49 730 734 436 543 1256 1265 Hop 1 | . 1 . . . . . Pick Up 32 | . 5 3 5 4 11 4 Fast Attach 41 | 7 5 4 . 5 10 10 Attach 9 | . 1 . 1 1 3 3 Detach 2 | . . . . . 2 . Swap 29 | . 3 . 1 5 7 13 Drop 56 | . 8 6 6 7 19 10 Fire 113 | 4 77 28 2 2 . . Melee 302 | . . . 4 12 113 173 Ram . | . . . . . . . Kick . | . . . . . . . Crush . | . . . . . . . Escape Stasis . | . . . . . . . Rewire . | . . . . . . . Trap 3 | . . . . 3 . . Miscellaneous 184 | . 22 18 . 8 70 66 Route ------- -11/Scrapyard -10/Materials (discovered 5 exits: [*Mat x3] / [*Min x2]) -10/Mines (discovered 3 exits: [*Mat x2] / *Exi) -10/Exiles (discovered 2 exits: *Min x2) -9/Mines (discovered 2 exits: *Mat x2) -8/Materials (discovered 3 exits: *Fac x3) -7/Factory (discovered 8 exits: *Fac x4 / *Sto x2 / *Low x2) History --------- Turn | Location | Event 3 | -11/Scrapyard | Upgraded with Propulsion slot (x1) 3 | -11/Scrapyard | Upgraded with Utility slot (x1) 3 | -11/Scrapyard | Upgraded with Weapon slot (x1) 5 | -11/Scrapyard | Discovered new exit (range 16) 64 | -11/Scrapyard | Entered Materials 279 | -10/Materials | Discovered new exit (range 9) 390 | -10/Materials | Discovered new exit (range 16) 429 | -10/Materials | Reached level 2 450 | -10/Materials | Upgraded with Utility slot (x1) 512 | -10/Materials | Build established: Scavenger-Mutant 522 | -10/Materials | Discovered new exit (range 16) 615 | -10/Materials | Discovered new exit (range 17) 644 | -10/Materials | Central database locked down 658 | -10/Materials | Discovered new exit (range 12) 795 | -10/Materials | Entered Mines 795 | -10/Mines | Accompanied by 1 ally 804 | -10/Mines | Joined a pair of Derelicts in attacking an 0b10 outpost 805 | -10/Mines | Discovered new exit (range 13) 937 | -10/Mines | Reached level 3 939 | -10/Mines | Learned location of 1 exit from Materials 943 | -10/Mines | Received a Rocket Launcher from a helpful Derelict 1050 | -10/Mines | Upgraded with Propulsion slot (x1) 1090 | -10/Mines | Discovered new exit (range 12) 1138 | -10/Mines | Deemed a non-threat by the Exiles lab entrance 1138 | -10/Mines | Discovered new exit (range 5) 1252 | -10/Mines | Assisted by bots powering up and referring to "LRC-V3" 1408 | -10/Mines | Entered Exiles 1408 | -10/Exiles | Accompanied by 6 allies 1415 | -10/Exiles | Discovered new exit (range 15) 1438 | -10/Exiles | Led the pair of lost Derelicts to a safe place 1438 | -10/Exiles | Met 8R-AWN 1447 | -10/Exiles | Met EX-HEX 1495 | -10/Exiles | Met EX-DEC 1512 | -10/Exiles | Learned location of Zion (-7) 1523 | -10/Exiles | Met EX-BIN 1557 | -10/Exiles | Aligned with FarCom system 1557 | -10/Exiles | Given EX-Vault access code 1569 | -10/Exiles | Opened EX-Vault 1575 | -10/Exiles | Found 0b10 Alert Chip 1587 | -10/Exiles | Warned to stay clear of 0b10 Research branches 1624 | -10/Exiles | Discovered new exit (range 14) 1703 | -10/Exiles | Attacked by the Exiles 1727 | -10/Exiles | Left Exiles lab with 0b10 Alert Chip 1727 | -10/Exiles | Entered Mines 1727 | -9/Mines | Accompanied by 4 allies 1766 | -9/Mines | Met a Derelict shopkeep closing up shop 1774 | -9/Mines | Discovered new exit (range 13) 1793 | -9/Mines | Found a damaged Exp. Sensor Array with a note attached 1795 | -9/Mines | Found Prototype Device 1795 | -9/Mines | Identified Exp. Sensor Array 1856 | -9/Mines | Reached level 4 1865 | -9/Mines | Upgraded with Utility slot (x1) 1898 | -9/Mines | Found a hidden stash of uninstalled traps 1908 | -9/Mines | Discovered new exit (range 6) 1919 | -9/Mines | Found the Drone Emporium 1922 | -9/Mines | Found Prototype Device 1922 | -9/Mines | Identified Sensor Drone Bay 1992 | -9/Mines | Met a Derelict who couldn't figure out how to use a Trap Extractor 2157 | -9/Mines | Learned Materials stockpile data 2158 | -9/Mines | Received a Mining Laser from a helpful Derelict 2206 | -9/Mines | Entered Materials 2206 | -8/Materials | Accompanied by 4 allies 2207 | -8/Materials | Identified exit to Factory 2208 | -8/Materials | Reached level 5 2208 | -8/Materials | Upgraded with Utility slot (x1) 2385 | -8/Materials | Central database locked down 2402 | -8/Materials | Discovered exit to Factory (range 14) 2411 | -8/Materials | Reached level 6 2422 | -8/Materials | Upgraded with Utility slot (x1) 2555 | -8/Materials | Repaired Broken Exp. Sensor Array 2584 | -8/Materials | Build established: Hacker-Scout 2706 | -8/Materials | Repaired Broken Power Maul 2843 | -8/Materials | Reached level 7 2879 | -8/Materials | Upgraded with Power slot (x1) 2879 | -8/Materials | Upgraded with Weapon slot (x1) 3242 | -8/Materials | Reached level 8 3242 | -8/Materials | Upgraded with Propulsion slot (x1) 3497 | -8/Materials | Entered Factory 3498 | -7/Factory | Identified exit to Storage 3499 | -7/Factory | Reached level 9 3499 | -7/Factory | Upgraded with Utility slot (x1) 3560 | -7/Factory | Identified exit to Lower Caves 3619 | -7/Factory | Reached level 10 3622 | -7/Factory | Upgraded with Weapon slot (x1) 3823 | -7/Factory | Identified exit to Factory 4139 | -7/Factory | Reached level 11 4353 | -7/Factory | Core integrity fell below 50% 4411 | -7/Factory | Destroyed 7 combat bots 4441 | -7/Factory | Reached level 12 4442 | -7/Factory | Core integrity fell below 20% 4789 | -7/Factory | Reached level 13 4798 | -7/Factory | Upgraded with Utility slot (x1) 4938 | -7/Factory | Build established: Hacker-Mutant 5083 | -7/Factory | Fabricated Aerolev Unit (x1) 5183 | -7/Factory | Fabricated Aerolev Unit (x1) 5258 | -7/Factory | Reached level 14 5261 | -7/Factory | Upgraded with Weapon slot (x1) 5283 | -7/Factory | Local fabrication network quarantined 5288 | -7/Factory | Fabricated Aerolev Unit? 5299 | -7/Factory | Destroyed by G-47 Trooper with Particle Gun Last Messages --------------- 05258_ Reached level 14. 05258_ Y-54 Guardian destroyed. 05258_ R-06 Scavenger collects Power Maul. 05261_ Upgraded: Weapon Slot (+1) 05261_ R-06 Scavenger collects Gatling Laser. 05264_ R-06 Scavenger collects Imp. Deuterium Engine. 05268_ Acquired Chainsword. 05269_ R-06 Scavenger collects Imp. Heat Sink. 05274_ K-01 Serf collects debris. 05283_ ALERT: Fabrication network compromised, local systems quarantined. 05285_ Chainsword follow-up attack on G-47 Trooper. 05285_ Power Maul follow-up attack on G-47 Trooper. 05287_ Imp. Light Armor Plating destroyed. 05288_ >> FABRICATOR: Completed Aerolev Unit? 05289_ System corrupted: Greatsword targeting data glitched. 05289_ Power Maul follow-up attack on G-47 Trooper. 05289_ G-47 Trooper knocked back. 05296_ Power Maul follow-up attack on G-47 Trooper. 05296_ Destroyed Aluminum Leg. 05296_ G-47 Trooper system corrupted by crushing effect. Map ----- +----------------------------------------------------+ | ??????????????#????? ??? ? # | | ??????????? ??#?###?####+#### | | ?????????? ? ?????#### | | ????????? ?? ?##???#?# #### ######### | | ????????"?? ??###??### ####/#########?? | | ????????""??? ? ?? ? # # """S""" #?? | | ?????????? ? # ????# """"""" #! ! """ """ #?? | | ??????? ??? ? ?? # """"""" # #?? | | ?????#####+???# # """"""" + """ """ #?? | | ???? ?#?? ???? """?# """"""" # """ """ #?? | | ???????? ### """?# #] ! """ """ #?? | | ??????# ?## ?"""?# """"""" # #?? | | ??+???# ??? ""?"# """"""" ###+#######+#### | | ???#### ### """"# """"""" ###### | | ????#?# ? ""?"# """"""" | | ????### #? ? + % | | ?? ???# # ? # !/ """ | | #??#### ? # // Y" ##### | | ## ?### ######## // """ #???? | | ???#### % "" "" #???? | | ??????# ^ "F "" # | | ??? ??# """"" !]] ! + | | ??? "?# """ ]]] #???? | | ?????## """ % % ]]] # ??? | | ??????# """^ ###/############### #???? | | ? ?## "" # g @ = / ##??# % #???? | | ?????### """ F" # g % #?### ^ ^ #???? | | ??? ???# """ " # """ !!! ##?## #???? | | ???????# """ "" # """ !!! ##### ##### | | ??? ### # """ !!! %#### | | ??????## # ###?# | | ?? ?### ##############+#####+###?# | | ???? ?## ## #%##### | | ???? ?# ?# """ """ """ """ # ##?## | | ???????? ?# "R" """ """ """ # #???# """"" | | ???????? # " " """ """ """ # ##### ""=F" | | ??????? > # # ##""" "" "" | | ???????? ?# ! ! ] # ##"G | | ???#????? ?? #] ! # ##""" | | ??????? ! ??######+######+##+## ##### """ """ | | ????????? ? #???### #???# """ """ | | ??????????? ??#?### #####= #?### """ """ | | ???????????????#### ##??# [ ##### | | ???????????????#?##? ##??# | | ????????????????##?? ##### #########+ | | ?????????????#????????? ??# #????????? | | ??????????????????????? ?## +????????? | | ????????????????????"?????#######+#######????????? | | ?????????????????????????#?????? ????????????????? | | ???????????????????????????#?????????????????????? | +----------------------------------------------------+ Best States ------------- Heat Dissipation 31 Energy Generation 27 Energy Capacity 490 Matter Stores 500 Matter Capacity 500 Sight Range 17 Robot Scan Range 30 Terrain Scan Range 20 Terrain Scan Density 110 Jamming Range 8 Armor Coverage 225 Melee Speed Boost 20 Evasion (%) 62 Melee Accuracy 6 Recoil Reduction 1 Offensive Hacking 25 Defensive Hacking 5 Item Schematics ----------------- Aerolev Unit | -8/Materials | Scanalyzed Exp. Sensor Array | -8/Materials | Scanalyzed Transmission Jammer | -8/Materials | Scanalyzed Power Maul | -8/Materials | Scanalyzed Robot Schematics ------------------ M-13 Machinist | -10/Materials | Hacked P-60 Hacker | -7/Factory | Hacked Fabricated ------------ Aerolev Unit | x1 | -7/Factory Aerolev Unit | x1 | -7/Factory Aerolev Unit | x1 | -7/Factory Alien Tech Used ----------------- None Achievements -------------- Batter Up Challenges ------------ None RPGLIKE | -11 -10 -10 -10 -9 -8 -7 --------- Run | Scr Mat Min Exi Min Mat Fac Levels Raised 13 | . 1 1 . 1 4 6 XP Earned 22590 | 3000 2192 909 350 1593 6373 8173 XP Spent 21630 | 2900 1550 800 . 1100 6500 8780 Upgrades 35 | 10 2 1 . 1 6 15 Power Slot 1 | . . . . . 1 . Propulsion Slot 3 | 1 . 1 . . 1 . Utility Slot 7 | 1 1 . . 1 2 2 Weapon Slot 4 | 1 . . . . 1 2 Core Integrity 8 | . . . . . . 8 Heat Dissipation 1 | . . . . . . 1 Mass Support 1 | 1 . . . . . . Inventory Capacity 5 | 2 1 . . . 1 1 Sight Range 1 | 1 . . . . . . Terrain Scan Density 1 | 1 . . . . . . Melee Accuracy 1 | . . . . . . 1 Hack Attack % 1 | 1 . . . . . . Hack Defense % 1 | 1 . . . . . . Protomatter Created 1361 | . 108 53 . 42 525 633 Integrity Restored 3777 | . 442 378 . 135 1367 1455 Core 3215 | . 406 246 . 88 1020 1455 Parts 562 | . 36 132 . 47 347 . Protomatter Decayed 512 | . . 17 . 39 308 148 Game ------ Seed RefineryFactoryField Manual? 0 Play Time 01:10:22 Cumulative 345.0 hours Start 2020.10.13 @ 16:31:48 End 2020.10.13 @ 20:36:36 Sessions 3 Manual Loads 0 Difficulty Rogue Special Mode Winter2019/RPGLIKE Game No. 135 Rogue 135 Adventurer 0 Explorer 0 Win Type - Total 4 Types 3/0/0/1/0/0/0/0/0 Lore% 87 Gallery% 92 Achievement% 73 Wizard Run 0 Options --------- ASCII 0 Keyboard 0 Movement Numpad Keybinds 0 Fullscreen 1 Font 18/SmallcapsGlow Map View 76x50 Tactical HUD 1 Map Filters NONE Filters NONE Steam 1 RUN: 60fb43b7-1453-42c0-a134-8e74d6a04fbe